fUSD/lending_fUSD_20250404
["ID","MTS","AMOUNT","RATE_DAILY","PERIOD"]
[357135084,1743779443241,-851.22,0.00049863,120]
[357135085,1743779443251,-500.0,0.00049863,120]
[357135086,1743779443261,-958.31,0.00049863,30]
[357135087,1743779443270,-500.0,0.00049863,120]
[357135089,1743779443280,-500.0,0.00049863,120]
[357135091,1743779443289,-500.0,0.00049863,120]
[357135092,1743779443299,-500.0,0.00049863,120]
[357135094,1743779443308,-500.0,0.00049863,120]
[357135096,1743779443318,-2026.75,0.00049863,120]
[357135097,1743779443327,-500.0,0.00049863,120]
[357135098,1743779443337,-500.0,0.00049863,120]
[357135099,1743779443347,-645.86,0.00049863,120]
[357135100,1743779443360,-168.28161387,0.00049883,15]
[357135101,1743779443371,-7918.45,0.000499,60]
[357135102,1743779443381,-1709.0,0.000499,2]
[357135103,1743779443391,-500.0,0.0005,120]
[357135105,1743779443401,-159.39,0.00050036,2]
[357135106,1743779443411,-150.0,0.00050094,120]
[357135107,1743779443422,-500.0,0.00050124,60]
[357135108,1743779443432,-664.79,0.00050135,120]
[357135109,1743779443442,-500.0,0.00050135,7]
[357135110,1743779443452,-500.0,0.00050135,120]
[357135111,1743779443462,-500.0,0.00050135,120]
[357135112,1743779443472,-2256.37,0.00050135,2]
[357135113,1743779443482,-500.0,0.00050135,120]
[357135114,1743779443492,-500.0,0.00050135,120]
[357135115,1743779443502,-500.0,0.00050135,120]
[357135116,1743779443512,-500.0,0.00050135,120]
[357135117,1743779443521,-413.75407291,0.00050135,120]
[357135118,1743779443531,-500.0,0.00050135,120]
[357135119,1743779443540,-579.84,0.00050135,120]
[357135120,1743779443550,-500.0,0.00050135,2]
[357135121,1743779443559,-500.0,0.00050135,120]
[357135122,1743779443569,-988.89,0.00050136,120]
[357135123,1743779443579,-500.0,0.00050136,2]
[357135124,1743779443588,-500.0,0.00050136,120]
[357135125,1743779443598,-500.0,0.00050136,120]
[357135126,1743779443608,-799.59,0.00050136,120]
[357135127,1743779443618,-500.0,0.00050136,120]
[357135128,1743779443627,-500.0,0.00050136,120]
[357135129,1743779443637,-500.0,0.00050136,120]
[357135130,1743779443646,-500.0,0.00050136,30]
[357135131,1743779443656,-500.0,0.00050136,120]
[357135132,1743779443665,-500.0,0.00050136,120]
[357135133,1743779443675,-500.0,0.00050136,120]
[357135134,1743779443689,-443.31980339,0.00050136,120]
[357135135,1743779443699,-500.0,0.00050136,120]
[357135136,1743779443709,-500.0,0.00050136,120]
[357135137,1743779443719,-500.0,0.00050136,120]
[357135138,1743779443730,-399.52699011,0.00050136,120]
[357135139,1743779443740,-642.63,0.00050136,120]
[357135140,1743779443750,-703.36,0.00050136,120]
[357135141,1743779443759,-1493.83,0.00050136,120]
[357135142,1743779443770,-500.0,0.00050136,120]
[357135143,1743779443780,-500.0,0.00050136,120]
[357135144,1743779443790,-694.96,0.00050136,120]
[357135145,1743779443800,-500.0,0.00050136,120]
[357135146,1743779443809,-500.0,0.00050136,12]
[357135147,1743779443819,-500.0,0.00050136,120]
[357135148,1743779443828,-536.6,0.00050136,120]
[357135149,1743779443837,-500.0,0.00050136,120]
[357135150,1743779443847,-500.0,0.00050136,120]
[357135151,1743779443858,-525.77649167,0.00050136,30]
[357135152,1743779443868,-500.0,0.00050136,120]
[357135153,1743779443879,-500.0,0.00050136,120]
[357135154,1743779443889,-547.92,0.00050136,120]
[357135155,1743779443898,-500.0,0.00050136,7]
[357135156,1743779443908,-500.0,0.00050136,120]
[357135157,1743779443917,-500.0,0.00050136,120]
[357135158,1743779443927,-500.0,0.00050136,120]
[357135159,1743779443940,-574.48,0.00050136,120]
[357135160,1743779443949,-431.18503775,0.00050136,120]
[357135161,1743779443959,-500.0,0.00050136,120]
[357135162,1743779443969,-500.0,0.00050136,120]
[357135164,1743779443978,-500.0,0.00050136,120]
[357135166,1743779443988,-1861.73,0.00050136,7]
[357135168,1743779443996,-1143.12,0.00050136,120]
[357135170,1743779444005,-573.99,0.00050136,120]
[357135172,1743779444015,-896.01,0.00050136,120]
[357135173,1743779444025,-500.0,0.00050136,120]
[357135175,1743779444035,-500.0,0.00050136,120]
[357135177,1743779444045,-500.0,0.00050136,120]
[357135179,1743779444054,-1229.4,0.00050136,120]
[357135181,1743779444063,-501.07,0.00050136,120]
[357135183,1743779444073,-500.0,0.00050136,120]
[357135185,1743779444083,-531.49,0.00050136,120]
[357135187,1743779444092,-980.16,0.00050136,120]
[357135188,1743779444102,-500.0,0.00050136,120]
[357135190,1743779444114,-500.0,0.00050136,120]
[357135192,1743779444123,-500.0,0.00050136,120]
[357135193,1743779444133,-187.10886274,0.00050136,120]
[357135194,1743779444143,-528.36,0.00050136,120]
[357135195,1743779444153,-3804.71,0.00050136,120]
[357135196,1743779444162,-500.0,0.00050136,120]
[357135197,1743779444172,-716.89,0.00050136,120]
[357135198,1743779444182,-176.48,0.00050136,2]
[357135199,1743779444192,-526.99466434,0.00050136,120]
[357135200,1743779444201,-1368.1,0.00050136,10]
[357135201,1743779444211,-500.0,0.00050136,120]
[357135202,1743779444221,-500.0,0.00050136,120]
[357135203,1743779444232,-500.0,0.00050136,30]
[357135204,1743779444241,-500.0,0.00050136,120]
[357135205,1743779444251,-1009.51,0.00050136,120]
[357135206,1743779444261,-500.0,0.00050136,120]
[357135207,1743779444271,-2000.0,0.00050136,2]
[357135208,1743779444281,-851.22,0.00050136,120]
[357135209,1743779444290,-500.0,0.00050136,120]
[357135210,1743779444299,-958.31,0.00050136,30]
[357135211,1743779444309,-500.0,0.00050136,120]
[357135212,1743779444318,-500.0,0.00050136,120]
[357135213,1743779444328,-500.0,0.00050136,120]
[357135214,1743779444337,-500.0,0.00050136,120]
[357135215,1743779444347,-500.0,0.00050136,120]
[357135216,1743779444358,-2026.75,0.00050136,120]
[357135217,1743779444368,-500.0,0.00050136,120]
[357135218,1743779444378,-500.0,0.00050136,120]
[357135219,1743779444387,-645.86,0.00050136,120]
[357135220,1743779444397,-1118.0,0.00050211,120]
[357135221,1743779444406,-168.28161387,0.00050222,15]
[357135222,1743779444416,-150.0,0.00050227,7]
[357135223,1743779444426,-150.0,0.00050271,7]
[357135224,1743779444435,-150.0,0.00050335,7]
[357135225,1743779444445,-152.29444619,0.000504,27]
[357135226,1743779444454,-165.43750054,0.000504,40]
[357135227,1743779444464,-500.0,0.000504,120]
[357135228,1743779444473,-150.0,0.00050403,7]
[357135229,1743779444483,-664.79,0.00050409,120]
[357135230,1743779444492,-506.33588309,0.00050409,7]
[357135231,1743779444502,-500.0,0.00050409,120]
[357135232,1743779444512,-500.0,0.00050409,120]
[357135233,1743779444522,-2256.37,0.00050409,2]
[357135234,1743779444531,-500.0,0.00050409,120]
[357135235,1743779444540,-500.0,0.00050409,120]
[357135236,1743779444550,-419.90016959,0.00050409,120]
[357135237,1743779444560,-500.0,0.00050409,120]
[357135238,1743779444570,-500.0,0.00050409,120]
[357135239,1743779444579,-579.84,0.00050409,120]
[357135240,1743779444588,-988.89,0.0005041,120]
[357135241,1743779444598,-500.0,0.0005041,2]
[357135242,1743779444610,-500.0,0.0005041,120]
[357135243,1743779444620,-500.0,0.0005041,120]
[357135244,1743779444630,-799.59,0.0005041,120]
[357135245,1743779444639,-500.0,0.0005041,120]
[357135246,1743779444648,-500.0,0.0005041,120]
[357135247,1743779444657,-500.0,0.0005041,120]
[357135248,1743779444667,-500.0,0.0005041,30]
[357135249,1743779444677,-500.0,0.0005041,120]
[357135250,1743779444691,-500.0,0.0005041,120]
[357135251,1743779444701,-500.0,0.0005041,120]
[357135252,1743779444710,-500.0,0.0005041,120]
[357135253,1743779444720,-500.0,0.0005041,120]
[357135254,1743779444730,-500.0,0.0005041,120]
[357135255,1743779444740,-642.63,0.0005041,120]
[357135256,1743779444749,-703.36,0.0005041,120]
[357135257,1743779444759,-1493.83,0.0005041,120]
[357135258,1743779444770,-500.0,0.0005041,120]
[357135259,1743779444780,-500.0,0.0005041,120]
[357135260,1743779444789,-694.96,0.0005041,120]
[357135261,1743779444798,-500.0,0.0005041,120]
[357135262,1743779444808,-500.0,0.0005041,12]
[357135263,1743779444817,-500.0,0.0005041,120]
[357135264,1743779444827,-536.6,0.0005041,120]
[357135265,1743779444836,-500.0,0.0005041,120]
[357135266,1743779444846,-500.0,0.0005041,120]
[357135267,1743779444857,-500.0,0.0005041,120]
[357135268,1743779444867,-500.0,0.0005041,120]
[357135269,1743779444877,-547.92,0.0005041,120]
[357135270,1743779444887,-500.0,0.0005041,7]
[357135271,1743779444896,-500.0,0.0005041,120]
[357135272,1743779444906,-500.0,0.0005041,120]
[357135273,1743779444915,-500.0,0.0005041,120]
[357135274,1743779444925,-574.48,0.0005041,120]
[357135275,1743779444935,-500.0,0.0005041,120]
[357135276,1743779444944,-500.0,0.0005041,120]
[357135277,1743779444954,-504.81926551,0.0005041,120]
[357135278,1743779444964,-1861.73,0.0005041,7]
[357135279,1743779444974,-1143.12,0.0005041,120]
[357135280,1743779444983,-573.99,0.0005041,120]
[357135281,1743779444993,-896.01,0.0005041,120]
[357135282,1743779445003,-500.0,0.0005041,120]
[357135283,1743779445013,-500.0,0.0005041,120]
[357135284,1743779445023,-500.0,0.0005041,120]
[357135285,1743779445033,-1229.4,0.0005041,120]
[357135286,1743779445042,-501.07,0.0005041,120]
[357135287,1743779445052,-500.0,0.0005041,120]
[357135288,1743779445061,-531.49,0.0005041,120]
[357135289,1743779445071,-980.16,0.0005041,120]
[357135290,1743779445080,-500.0,0.0005041,120]
[357135291,1743779445089,-500.0,0.0005041,120]
[357135292,1743779445099,-500.0,0.0005041,120]
[357135293,1743779445111,-528.36,0.0005041,120]
[357135294,1743779445121,-3804.71,0.0005041,120]
[357135295,1743779445131,-500.0,0.0005041,120]
[357135296,1743779445140,-716.89,0.0005041,120]
[357135297,1743779445151,-1368.1,0.0005041,10]
[357135298,1743779445161,-500.0,0.0005041,120]
[357135299,1743779445171,-500.0,0.0005041,120]
[357135300,1743779445182,-500.0,0.0005041,30]
[357135301,1743779445192,-500.0,0.0005041,120]
[357135302,1743779445202,-1009.51,0.0005041,120]
[357135303,1743779445212,-500.0,0.0005041,120]
[357135304,1743779445222,-2000.0,0.0005041,2]
[357135305,1743779445232,-851.22,0.0005041,120]
[357135306,1743779445242,-500.0,0.0005041,120]
[357135307,1743779445252,-958.31,0.0005041,30]
[357135308,1743779445262,-500.0,0.0005041,120]
[357135309,1743779445272,-500.0,0.0005041,120]
[357135310,1743779445283,-500.0,0.0005041,120]
[357135311,1743779445292,-500.0,0.0005041,120]
[357135312,1743779445303,-422.59834766,0.0005041,120]
[357135313,1743779445313,-2026.75,0.0005041,120]
[357135314,1743779445323,-500.0,0.0005041,120]
[357135315,1743779445333,-500.0,0.0005041,120]
[357135316,1743779445343,-645.86,0.0005041,120]
[357135317,1743779445353,-150.0,0.00050419,7]
[357135318,1743779445367,-150.0,0.00050419,7]
[357135319,1743779445377,-500.0,0.00050473,10]
[357135320,1743779445387,-500.0,0.00050479,2]
[357135321,1743779445397,-500.0,0.00050479,3]
[357135322,1743779445407,-517.3183573,0.00050479,120]
[357135323,1743779445416,-537.96693723,0.00050479,120]
[357135324,1743779445426,-524.60394143,0.00050479,120]
[357135325,1743779445435,-500.0,0.00050479,120]
[357135326,1743779445446,-515.28155562,0.00050479,120]
[357135327,1743779445456,-301.67021339,0.00050479,120]
[357135328,1743779445466,-500.0,0.00050479,120]
[357135329,1743779445477,-500.0,0.00050479,2]
[357135330,1743779445486,-169.42785499,0.00050479,120]
[357135331,1743779445496,-500.0,0.00050479,120]
[357135332,1743779445506,-151.0,0.00050486,2]
[357135333,1743779445516,-644.79446246,0.00050486,2]
[357135334,1743779445525,-156.587,0.00050486,2]
[357135335,1743779445535,-552220.66040313,0.00050487,120]
[357135336,1743779445654,-1015.92032839,0.00050487,120]
[357135337,1743779445785,-10048.65097814,0.00050487,120]
[357135338,1743779445802,-3002.93027912,0.00050487,120]
[357135339,1743779446016,-3925.90496349,0.00050487,120]
[357135340,1743779446028,-894.894,0.00050487,120]
[357135347,1743779446333,-463.99492423,0.00049315,16]
[357135349,1743779446348,-36.00507577,0.00049315,16]
[357135351,1743779446360,-500.0,0.00049315,120]
[357135353,1743779446369,-489.6155893,0.00049589,16]
[357135355,1743779446381,-10.3844107,0.00049589,16]
[357135357,1743779446390,-500.0,0.00049863,16]
[357135359,1743779446400,-500.0,0.00050136,16]
[357135361,1743779446411,-794.50552637,0.00050487,120]
[357135371,1743779446958,-588.34414406,0.000489,2]
[357135373,1743779446970,-411.65585594,0.000489,2]
[357135375,1743779446980,-500.0,0.00049315,120]
[357135377,1743779446990,-500.0,0.00049315,120]
[357135379,1743779446999,-181.52172996,0.00049315,120]
[357135425,1743779537755,151.0,0.00044124,2]
[357135426,1743779659759,-150.0,0.00026849,2]
[357135429,1743780334117,-4.11,0.00026849,2]
[357135430,1743780334140,-250.0,0.00026925,2]
[357135431,1743780334164,-250.0,0.00027,2]
[357135432,1743780334187,-300.0,0.00029,2]
[357135433,1743780334210,-304.963,0.00029406,22]
[357135434,1743780334233,-250.0,0.00029534,2]
[357135435,1743780334255,-250.0,0.00029534,2]
[357135436,1743780334277,-350.0,0.00031,2]
[357135437,1743780334299,-400.0,0.00033,2]
[357135438,1743780334322,-154.11,0.00034716,2]
[357135439,1743780334344,-450.0,0.00035,2]
[357135440,1743780334368,-500.0,0.00037,2]
[357135441,1743780334392,-155.43652135,0.000372,103]
[357135442,1743780334416,-550.0,0.00039,2]
[357135443,1743780334439,-600.0,0.00041,2]
[357135444,1743780334463,-154.11,0.00042583,2]
[357135445,1743780334484,-151.0,0.00044248,2]
[357135446,1743780334507,-150.0,0.00047124,7]
[357135447,1743780334531,-4595.54054386,0.0004733,2]
[357135448,1743780426079,-3761.743128,0.0001995,2]
[357135449,1743780426101,-250.0,0.00021945,2]
[357135450,1743780426123,-550.0,0.00047329,5]
[357135451,1743780426145,-844.49809572,0.0004733,2]
[357135452,1743780429101,-339.56960376,0.0004733,2]
[357135453,1743780523102,-150.0,0.000151,2]
[357135454,1743780547113,-349.999999,0.000151,2]
[357135455,1743780547135,-4064.728305,0.0002,4]
[357135456,1743780547189,-46748.43750718,0.0002,4]
[357135457,1743780547212,-39057.50069933,0.00033,2]
[357135458,1743780547233,-311.68764872,0.0004,2]
[357135459,1743780547255,-3151.6974699,0.000425,120]
[357135460,1743780547276,-288.0376774,0.00042809,2]
[357135461,1743780547300,-21302.6657901,0.00045,2]
[357135462,1743780555087,-9122.56592819,0.00045,2]
[357135463,1743780555112,-582.01,0.00045857,2]
[357135464,1743780555133,-731.78991961,0.00046387,2]
[357135475,1743780600054,150.03717506,0.00035762,2]
[357135499,1743780631688,-1277.14221972,0.00035862,4]
[357135500,1743780631699,-1507.74670341,0.00035862,4]
[357135501,1743780631711,-5232.84701429,0.00035862,4]
[357135502,1743780631721,-499.999999,0.00035862,5]
[357135503,1743780631731,-5172.97877432,0.00035862,4]
[357135504,1743780631741,-18120.39175666,0.0004733,2]
[357135505,1743780631751,-923.95640606,0.000479,15]
[357135506,1743780631907,-150.0,0.0004797,2]
[357135507,1743780631918,-150.43,0.0004799,2]
[357135508,1743780631927,-150.43,0.0004799,2]
[357135509,1743780631937,-150.43,0.0004799,2]
[357135510,1743780631946,-38728.80952459,0.00048,90]
[357135511,1743780631965,-4729.48895162,0.00048,90]
[357135512,1743780631976,-2517.74627007,0.00048,90]
[357135513,1743780632053,-2410.8000001,0.00048,90]
[357135689,1743780637602,-925.64999983,0.00048,90]
[357135690,1743780637621,-231781.74855965,0.00048,90]
[357135691,1743780637634,-458905.75669414,0.00048,90]
[357135692,1743780637645,-164000.0,0.00048,90]
[357135693,1743780637655,-1000.0,0.00048072,2]
[357135694,1743780637665,-151.91,0.00048095,120]
[357135695,1743780637675,-582.01,0.00048121,2]
[357135696,1743780637686,-923.95640601,0.00048233,15]
[357135697,1743780637696,-500.0,0.00048449,7]
[357135698,1743780637707,-166.66,0.0004845,2]
[357135699,1743780637717,-217.69455857,0.000485,120]
[357135700,1743780637727,-322.51,0.0004863,2]
[357135701,1743780637736,-198.67,0.00048668,120]
[357135702,1743780637746,-301.81,0.00048676,2]
[357135703,1743780637755,-704.072,0.00048841,2]
[357135704,1743780637766,-1118.0,0.00048841,2]
[357135705,1743780637775,-500.0,0.00048873,10]
[357135706,1743780637785,-4696.50490626,0.0004888,2]
[357135707,1743780637795,-150.43,0.0004888,2]
[357135708,1743780637804,-150.43,0.0004888,2]
[357135709,1743780637815,-183.94814314,0.0004888,7]
[357135710,1743780637825,-1099.845929,0.00048884,21]
[357135711,1743780637835,-270346.58985,0.0004889,4]
[357135712,1743780637845,-25014.9098711,0.0004889,4]
[357135713,1743780637859,-150.43,0.0004898,120]
[357135714,1743780637870,-834.9055304,0.00048984,4]
[357135715,1743780637879,-31805.4811588,0.0004899,4]
[357135716,1743780637889,-7696.89534496,0.0004899,4]
[357135718,1743780637899,-582.15,0.00048999,2]
[357135720,1743780637908,-608.50574772,0.00049,2]
[357135722,1743780637918,-29999.82012972,0.00049,120]
[357135724,1743780637927,-41951.67928448,0.00049,2]
[357135726,1743780637936,-168.86,0.00049,120]
[357135727,1743780637946,-204.45094451,0.00049,7]
[357135729,1743780637956,-10197.26955175,0.00049,2]
[357135731,1743780637965,-250.0,0.00049114,120]
[357135733,1743780637975,-151.0,0.00049285,2]
[357135736,1743780637985,-644.79446246,0.00049285,2]
[357135737,1743780637994,-150.43,0.00049295,120]
[357135739,1743780638004,-1563.0,0.000493,2]
[357135741,1743780638014,-691.33320572,0.000493,2]
[357135743,1743780638023,-15902.7405794,0.00049305,4]
[357135745,1743780638033,-3848.44767248,0.00049305,4]
[357135747,1743780638043,-325.16984272,0.00049315,14]
[357135750,1743780638054,-36998.4923042,0.00049315,14]
[357135752,1743780638065,-507.38844029,0.00049315,120]
[357135754,1743780638075,-500.0,0.00049315,2]
[357135755,1743780638084,-500.0,0.00049315,3]
[357135757,1743780638094,-500.0,0.00049315,120]
[357135760,1743780638104,-318.825437,0.00049315,120]
[357135762,1743780638118,-590.67034771,0.00049315,120]
[357135763,1743780638127,-151.334503,0.00049315,120]
[357135765,1743780638138,-500.0,0.00049315,120]
[357135767,1743780638148,-500.0,0.00049315,120]
[357135769,1743780638157,-382.31648053,0.00049315,120]
[357135772,1743780638170,-117.68351947,0.00049315,120]
[357135774,1743780638179,-500.0,0.00049315,120]
[357135776,1743780638190,-500.0,0.00049315,120]
[357135778,1743780638200,-500.0,0.00049315,120]
[357135780,1743780638210,-500.0,0.00049315,2]
[357135782,1743780638220,-513.61878868,0.00049315,120]
[357135784,1743780638230,-503.85916429,0.00049315,120]
[357135786,1743780638240,-351.73327619,0.00049315,120]
[357135788,1743780638250,-500.0,0.00049315,120]
[357135790,1743780638259,-499.16533499,0.00049315,120]
[357135792,1743780638269,-328.49599276,0.00049315,120]
[357135794,1743780638278,-500.0,0.00049315,120]
[357135796,1743780638287,-501.0,0.00049315,120]
[357135798,1743780638297,-507.36,0.00049315,120]
[357135800,1743780638308,-846.24,0.00049315,120]
[357135802,1743780638317,-29.37392302,0.00049315,2]
[357135805,1743780638339,-470.62607698,0.00049315,2]
[357135807,1743780638349,-500.0,0.00049315,120]
[357135809,1743780638361,-306.2246439,0.00049315,120]
[357135964,1743780639791,-266.29824234,0.00049315,120]
[357135967,1743780639801,-369.92075606,0.00049315,120]
[357135973,1743780639914,-0.03604645,0.00049315,120]
[357135974,1743780639941,-130.04319749,0.00049315,120]
[357135975,1743780639951,-500.0,0.00049315,120]
[357135976,1743780639962,-500.0,0.00049315,120]
[357135977,1743780639972,-500.0,0.00049315,120]
[357135978,1743780639982,-500.0,0.00049315,2]
[357135979,1743780639991,-500.0,0.00049315,120]
[357135980,1743780640000,-304.964,0.00049554,87]
[357135981,1743780640010,-3887.57307429,0.00049579,4]
[357135982,1743780640021,-294.34538065,0.00049579,4]
[357135983,1743780640032,-2507.8871888,0.00049579,4]
[357135984,1743780640043,-1699.35462564,0.00049579,4]
[357135985,1743780640056,-4731.7604079,0.00049579,4]
[357135986,1743780640069,-2179.07685147,0.00049579,4]
[357135987,1743780640082,-602.74305065,0.00049579,4]
[357135988,1743780640092,-372.24877642,0.00049589,2]
[357135989,1743780640104,-227.75122358,0.00049589,2]
[357135990,1743780640118,-500.000001,0.00049589,3]
[357135991,1743780640128,-296.67828442,0.00049589,120]
[357135992,1743780640140,-22.14715258,0.00049589,120]
[357135993,1743780640150,-484.11755892,0.00049589,120]
[357135995,1743780641007,-15.88244108,0.00049589,120]
[357135996,1743780641030,-184.11755892,0.00049589,120]
[357136007,1743780642893,-923.95640601,0.00048567,15]
[357136008,1743780642904,-167.07360137,0.00049315,2]
[357136009,1743780642916,-332.92639863,0.00049315,2]
[357136010,1743780642926,-500.0,0.00049315,120]
[357136011,1743780642935,-500.0,0.00049589,2]
[357136012,1743780642945,-315.88244108,0.00049589,120]
[357136013,1743780642954,-500.0,0.00049589,120]
[357136014,1743780642963,-507.36,0.00049589,120]
[357136015,1743780642973,-846.24,0.00049589,120]
[357136016,1743780642983,-500.0,0.00049589,2]
[357136017,1743780642993,-500.0,0.00049589,120]
[357136018,1743780643002,-500.0,0.00049589,120]
[357136019,1743780643011,-500.0,0.00049589,120]
[357136020,1743780643021,-500.0,0.00049589,120]
[357136021,1743780643031,-500.0,0.00049589,120]
[357136022,1743780643041,-500.0,0.00049589,2]
[357136023,1743780643050,-500.0,0.00049589,120]
[357136024,1743780643064,-281.6566245,0.00049589,2]
[357136025,1743780643073,-500.0,0.00049589,120]
[357136026,1743780643083,-68.23453579,0.0004979,120]
[357136036,1743780644147,-1723.48546421,0.0004979,120]
[357136037,1743780644159,-156.91555468,0.000498,30]
[357136038,1743780644169,-1924.22383624,0.00049853,4]
[357136039,1743780644179,-318.825437,0.00049863,120]
[357136040,1743780644189,-504.48706099,0.00049863,120]
[357136041,1743780644199,-501.6563957,0.00049863,2]
[357136042,1743780644209,-370.40855117,0.00049863,120]
[357136043,1743780644219,-500.0,0.00049863,120]
[357136044,1743780644230,-507.36,0.00049863,120]
[357136045,1743780644240,-846.24,0.00049863,120]
[357136046,1743780644250,-500.0,0.00049863,2]
[357136047,1743780644260,-500.0,0.00049863,120]
[357136048,1743780644270,-500.0,0.00049863,120]
[357136049,1743780644279,-500.0,0.00049863,120]
[357136050,1743780644290,-500.0,0.00049863,120]
[357136051,1743780644300,-500.0,0.00049863,120]
[357136052,1743780644310,-496.09054389,0.00049863,2]
[357136053,1743780644319,-500.0,0.00049863,120]
[357136054,1743780644328,-500.0,0.00049863,120]
[357136055,1743780644338,-151.45345253,0.0004989,15]
[357136056,1743780644348,-1924.22383624,0.0004989,4]
[357136057,1743780644359,-150.43,0.0004989,120]
[357136058,1743780644369,-395.53504938,0.000499,7]
[357136059,1743780644379,-3425.43529713,0.000499,120]
[357136060,1743780644389,-7217.15711804,0.000499,120]
[357136066,1743780645687,-87544.88981615,0.000499,120]
[357136067,1743780645697,-500.0,0.00049938,30]
[357136068,1743780645707,-150.43,0.00049978,120]
[357136069,1743780645717,-9984.33566187,0.00049979,4]
[357136070,1743780645829,-450.65629418,0.00049979,4]
[357136071,1743780646015,-1466.08588868,0.00049979,4]
[357136072,1743780646071,-1297.30200099,0.00049979,4]
[357136074,1743780646223,-386.70499981,0.00049979,4]
[357136101,1743780724607,4787.51,0.00035862,60]
[357136102,1743781535120,-799.775,0.00017808,2]
[357136103,1743781535143,-155.83,0.00026849,2]
[357136104,1743781535164,-250.0,0.00029534,2]
[357136105,1743781535185,-250.0,0.00036725,2]
[357136106,1743781535205,-468.27241758,0.00041096,2]
[357136107,1743781650186,-31.72758242,0.00041096,2]
[357136108,1743781650209,-508.62314296,0.000424,5]
[357136111,1743781747116,-250.0,0.00027,2]
[357136112,1743781747144,-300.0,0.00029,2]
[357136113,1743781747165,-671.0,0.000418,5]
[357136114,1743781747185,-151.0,0.00043275,2]
[357136115,1743781747206,-173.05071547,0.000434,120]
[357136116,1743781747232,-153.07,0.000436,36]
[357136117,1743781747259,-153.07,0.000436,36]
[357136118,1743781747280,-508.43928908,0.000447,2]
[357136119,1743781747301,-623.05,0.00044768,2]
[357136120,1743781747321,-347.57,0.000448,30]
[357136121,1743781747341,-150.0,0.000448,30]
[357136122,1743781747360,-291.73141671,0.000449,2]
[357136123,1743781747380,-151.0,0.00045,120]
[357136124,1743781747404,-173.05071546,0.00045402,120]
[357136125,1743781747425,-3313.36,0.000457,30]
[357136126,1743781747450,-150.0,0.00045743,2]
[357136127,1743781747476,-150.0,0.00045775,2]
[357136128,1743781747501,-500.0,0.00045793,120]
[357136129,1743781747522,-150.0,0.00045885,2]
[357136130,1743781747544,-500.0,0.00045932,120]
[357136131,1743781747567,-150.0,0.00045932,2]
[357136132,1743781747593,-153.07,0.000464,39]
[357136133,1743781747619,-153.07,0.000464,39]
[357136134,1743781747646,-153.07,0.000464,39]
[357136135,1743781747675,-153.07,0.000464,39]
[357136136,1743781747699,-150.0,0.00046726,7]
[357136137,1743781747722,-150.0,0.00046808,7]
[357136138,1743781755400,7531.919884,0.00034885,7]
[357136139,1743781756649,2818.121253,0.00034885,7]
[357136140,1743781757644,910.693394,0.00034885,7]
[357136143,1743781831758,-494.2459,0.00046888,30]
[357136144,1743781831768,-623.05,0.00047032,2]
[357136145,1743781831778,-150.0,0.00047151,7]
[357136146,1743781831787,-150.0,0.00047214,2]
[357136147,1743781831796,-150.0,0.00047329,4]